[Event "Titled Tuesday Blitz November 14 Early 2023"]
[White "Pranav, V"]
[Black "Cherniaiev, Tykhon"]
[WhiteFideId "25060783"]
[BlackFideId "14182360"]
[WhiteElo "3092"]
[BlackElo "2834"]
[Result "1-0"]
[Round "6"]
[TimeControl "180+1"]
[Date "2023.11.14"]
[WhiteClock "0:00:10"]
[BlackClock "0:00:02"]
[Board "11"]

1. Nf3 {[%clk 0:03:00]}  Nf6 {[%clk 0:02:59]} 2. g3 {[%clk 0:03:01]}  g6 {[%clk 0:02:58]} 3. Bg2 {[%clk 0:03:00]}  Bg7 {[%clk 0:02:56]} 4. O-O {[%clk 0:03:01]}  O-O {[%clk 0:02:55]} 5. d3 {[%clk 0:03:01]}  d5 {[%clk 0:02:56]} 6. Nbd2 {[%clk 0:03:02]}  c5 {[%clk 0:02:55]} 7. e4 {[%clk 0:03:02]}  Nc6 {[%clk 0:02:51]} 8. Re1 {[%clk 0:03:02]}  Bg4 {[%clk 0:02:51]} 9. h3 {[%clk 0:03:02]}  Bxf3 {[%clk 0:02:51]} 10. Qxf3 {[%clk 0:03:03]}  dxe4 {[%clk 0:02:51]} 11. dxe4 {[%clk 0:03:02]}  Qc7 {[%clk 0:02:52]} 12. Nc4 {[%clk 0:03:02]}  Nd7 {[%clk 0:02:49]} 13. c3 {[%clk 0:02:59]}  Nde5 {[%clk 0:02:48]} 14. Nxe5 {[%clk 0:02:59]}  Nxe5 {[%clk 0:02:49]} 15. Qe2 {[%clk 0:02:58]}  c4 {[%clk 0:02:48]} 16. Bf4 {[%clk 0:02:57]}  Qc6 {[%clk 0:02:49]} 17. Bxe5 {[%clk 0:02:52]}  Bxe5 {[%clk 0:02:50]} 18. Rad1 {[%clk 0:02:49]}  Rad8 {[%clk 0:02:49]} 19. Rd5 {[%clk 0:02:42]}  Bg7 {[%clk 0:02:39]} 20. Red1 {[%clk 0:02:39]}  Rxd5 {[%clk 0:02:39]} 21. exd5 {[%clk 0:02:40]}  Qc5 {[%clk 0:02:38]} 22. d6 {[%clk 0:02:38]}  exd6 {[%clk 0:02:37]} 23. Bxb7 {[%clk 0:02:38]}  Be5 {[%clk 0:02:33]} 24. Kg2 {[%clk 0:02:37]}  Rb8 {[%clk 0:02:03]} 25. Bd5 {[%clk 0:02:29]}  Rc8 {[%clk 0:01:59]} 26. h4 {[%clk 0:02:23]}  h5 {[%clk 0:01:39]} 27. Qf3 {[%clk 0:01:58]}  Qc7 {[%clk 0:01:38]} 28. Re1 {[%clk 0:01:54]}  Rf8 {[%clk 0:01:32]} 29. Qe4 {[%clk 0:01:49]}  Kg7 {[%clk 0:01:29]} 30. Bxc4 {[%clk 0:01:47]}  Rb8 {[%clk 0:01:26]} 31. Re2 {[%clk 0:01:42]}  a5 {[%clk 0:01:24]} 32. Qd5 {[%clk 0:01:35]}  Rc8 {[%clk 0:01:13]} 33. Bb5 {[%clk 0:01:25]}  Qb6 {[%clk 0:01:12]} 34. a4 {[%clk 0:01:24]}  Bf6 {[%clk 0:01:07]} 35. Re3 {[%clk 0:01:20]}  Qc5 {[%clk 0:01:03]} 36. Qf3 {[%clk 0:01:05]}  Be5 {[%clk 0:01:00]} 37. Qe4 {[%clk 0:01:01]}  Bf6 {[%clk 0:00:58]} 38. Rf3 {[%clk 0:01:01]}  Qe5 {[%clk 0:00:56]} 39. Qb7 {[%clk 0:00:59]}  Qc5 {[%clk 0:00:55]} 40. b4 {[%clk 0:00:53]}  axb4 {[%clk 0:00:51]} 41. cxb4 {[%clk 0:00:54]}  Qc7 {[%clk 0:00:30]} 42. Qd5 {[%clk 0:00:53]}  Rb8 {[%clk 0:00:26]} 43. a5 {[%clk 0:00:46]}  Bc3 {[%clk 0:00:18]} 44. Bc4 {[%clk 0:00:40]}  Bf6 {[%clk 0:00:18]} 45. b5 {[%clk 0:00:35]}  Rc8 {[%clk 0:00:18]} 46. Bb3 {[%clk 0:00:30]}  Qe7 {[%clk 0:00:15]} 47. a6 {[%clk 0:00:24]}  Rc5 {[%clk 0:00:16]} 48. Qxf7+ {[%clk 0:00:11]}  Qxf7 {[%clk 0:00:17]} 49. Bxf7 {[%clk 0:00:12]}  Rxb5 {[%clk 0:00:17]} 50. Ra3 {[%clk 0:00:12]}  Bd4 {[%clk 0:00:06]} 51. a7 {[%clk 0:00:11]}  Rb2 {[%clk 0:00:05]} 52. a8=Q {[%clk 0:00:09]}  Rxf2+ {[%clk 0:00:05]} 53. Kh3 {[%clk 0:00:10]}  Rxf7 {[%clk 0:00:03]} 54. Rb3 {[%clk 0:00:09]}  Be5 {[%clk 0:00:03]} 55. Rb7 {[%clk 0:00:09]}  Rxb7 {[%clk 0:00:03]} 56. Qxb7+ {[%clk 0:00:08]}  Kf6 {[%clk 0:00:04]} 57. Qd5 {[%clk 0:00:09]}  Kg7 {[%clk 0:00:02]} 58. g4 {[%clk 0:00:09]}  hxg4+ {[%clk 0:00:03]} 59. Kxg4 {[%clk 0:00:09]}  Kh6 {[%clk 0:00:04]} 60. Qe6 {[%clk 0:00:10]}  Kh7 {[%clk 0:00:01]} 61. Kg5 {[%clk 0:00:10]}  Kh8 {[%clk 0:00:02]} 62. Kxg6 {[%clk 0:00:09]}  Bd4 {[%clk 0:00:02]} 63. Qe8# {[%clk 0:00:10]} 1-0


[Site "https://www.chess.com"]

[Event "Titled Tuesday Blitz November 14 Early 2023"]
[White "Rychkov, Oleg"]
[Black "Le, Tuan Minh"]
[WhiteFideId "4122852"]
[BlackFideId "12401153"]
[WhiteElo "2831"]
[BlackElo "3056"]
[Result "1-0"]
[Round "6"]
[TimeControl "180+1"]
[Date "2023.11.14"]
[WhiteClock "0:01:58"]
[BlackClock "0:01:15"]
[Board "12"]

1. e4 {[%clk 0:03:00]}  e5 {[%clk 0:02:55]} 2. Bc4 {[%clk 0:02:59]}  Bc5 {[%clk 0:02:54]} 3. d3 {[%clk 0:02:58]}  d6 {[%clk 0:02:54]} 4. Nc3 {[%clk 0:02:58]}  Nc6 {[%clk 0:02:53]} 5. f4 {[%clk 0:02:57]}  Nf6 {[%clk 0:02:48]} 6. Nf3 {[%clk 0:02:57]}  Bg4 {[%clk 0:02:37]} 7. Na4 {[%clk 0:02:55]}  Bb6 {[%clk 0:02:31]} 8. h3 {[%clk 0:02:44]}  Bxf3 {[%clk 0:02:30]} 9. Qxf3 {[%clk 0:02:44]}  Nd4 {[%clk 0:02:31]} 10. Qf2 {[%clk 0:02:44]}  Qd7 {[%clk 0:02:21]} 11. Nxb6 {[%clk 0:02:42]}  axb6 {[%clk 0:02:22]} 12. c3 {[%clk 0:02:40]}  Nc6 {[%clk 0:02:05]} 13. Bb3 {[%clk 0:02:19]}  O-O {[%clk 0:01:41]} 14. O-O {[%clk 0:02:17]}  Qe7 {[%clk 0:01:15]} 15. fxe5 {[%clk 0:02:03]}  Qxe5 {[%clk 0:01:16]} 16. Bf4 {[%clk 0:01:59]}  Qd5 {[%clk 0:01:15]} 17. exd5 {[%clk 0:01:58]} 1-0


[Site "https://www.chess.com"]

[Event "Titled Tuesday Blitz November 14 Early 2023"]
[White "Szpar, Milosz"]
[Black "Sadhwani, Raunak"]
[WhiteFideId "1184989"]
[BlackFideId "35093487"]
[WhiteElo "2828"]
[BlackElo "3052"]
[Result "1-0"]
[Round "6"]
[TimeControl "180+1"]
[Date "2023.11.14"]
[WhiteClock "0:00:13"]
[BlackClock "0:00:11"]
[Board "13"]

1. e4 {[%clk 0:03:00]}  a6 {[%clk 0:02:59]} 2. d4 {[%clk 0:03:00]}  e6 {[%clk 0:02:54]} 3. Bd3 {[%clk 0:02:59]}  d5 {[%clk 0:02:53]} 4. e5 {[%clk 0:02:59]}  c5 {[%clk 0:02:53]} 5. c3 {[%clk 0:02:59]}  Bd7 {[%clk 0:02:53]} 6. Qg4 {[%clk 0:02:56]}  Qb6 {[%clk 0:02:45]} 7. Nf3 {[%clk 0:02:54]}  cxd4 {[%clk 0:02:27]} 8. cxd4 {[%clk 0:02:55]}  Bb5 {[%clk 0:02:23]} 9. Bxb5+ {[%clk 0:02:54]}  axb5 {[%clk 0:02:24]} 10. O-O {[%clk 0:02:49]}  Nc6 {[%clk 0:02:24]} 11. Be3 {[%clk 0:02:37]}  Nge7 {[%clk 0:02:16]} 12. Nbd2 {[%clk 0:02:31]}  Nf5 {[%clk 0:02:17]} 13. Nb3 {[%clk 0:02:30]}  Be7 {[%clk 0:02:12]} 14. Ne1 {[%clk 0:02:12]}  Ra4 {[%clk 0:02:09]} 15. Qd1 {[%clk 0:01:49]}  O-O {[%clk 0:02:04]} 16. Nc2 {[%clk 0:01:35]}  Rc8 {[%clk 0:01:39]} 17. g4 {[%clk 0:01:26]}  Nxe3 {[%clk 0:01:26]} 18. fxe3 {[%clk 0:01:27]}  f6 {[%clk 0:01:27]} 19. exf6 {[%clk 0:01:27]}  Bxf6 {[%clk 0:01:26]} 20. g5 {[%clk 0:01:28]}  Be7 {[%clk 0:01:12]} 21. Ne1 {[%clk 0:01:08]}  Bxg5 {[%clk 0:01:08]} 22. Qf3 {[%clk 0:01:02]}  Bf6 {[%clk 0:00:35]} 23. Qh3 {[%clk 0:01:02]}  Nd8 {[%clk 0:00:25]} 24. Nd3 {[%clk 0:00:57]}  Rac4 {[%clk 0:00:24]} 25. Kh1 {[%clk 0:00:56]}  Qd6 {[%clk 0:00:23]} 26. Rxf6 {[%clk 0:00:22]}  gxf6 {[%clk 0:00:24]} 27. Rg1+ {[%clk 0:00:22]}  Kf8 {[%clk 0:00:21]} 28. Qxh7 {[%clk 0:00:17]}  Nf7 {[%clk 0:00:20]} 29. Rg7 {[%clk 0:00:14]}  R4c7 {[%clk 0:00:11]} 30. Qg8+ {[%clk 0:00:13]} 1-0


[Site "https://www.chess.com"]

[Event "Titled Tuesday Blitz November 14 Early 2023"]
[White "Niemann, Hans Moke"]
[Black "Xu, Yi"]
[WhiteFideId "2093596"]
[BlackFideId "8605564"]
[WhiteElo "3034"]
[BlackElo "2819"]
[Result "1-0"]
[Round "6"]
[TimeControl "180+1"]
[Date "2023.11.14"]
[WhiteClock "0:00:24"]
[BlackClock "0:00:00"]
[Board "15"]

1. e4 {[%clk 0:03:00]}  e5 {[%clk 0:02:57]} 2. Nf3 {[%clk 0:03:00]}  Nf6 {[%clk 0:02:57]} 3. Nxe5 {[%clk 0:02:56]}  d6 {[%clk 0:02:57]} 4. Nd3 {[%clk 0:02:55]}  Nxe4 {[%clk 0:02:57]} 5. Qe2 {[%clk 0:02:55]}  Qe7 {[%clk 0:02:57]} 6. Nf4 {[%clk 0:02:56]}  Nf6 {[%clk 0:02:44]} 7. d4 {[%clk 0:02:54]}  Nc6 {[%clk 0:02:33]} 8. c3 {[%clk 0:02:54]}  Qxe2+ {[%clk 0:02:26]} 9. Bxe2 {[%clk 0:02:53]}  g5 {[%clk 0:02:25]} 10. Nh5 {[%clk 0:02:43]}  Nxh5 {[%clk 0:02:17]} 11. Bxh5 {[%clk 0:02:44]}  Be7 {[%clk 0:02:10]} 12. O-O {[%clk 0:02:44]}  Be6 {[%clk 0:02:08]} 13. Re1 {[%clk 0:02:42]}  Kd7 {[%clk 0:02:01]} 14. Nd2 {[%clk 0:02:40]}  d5 {[%clk 0:01:48]} 15. Nf3 {[%clk 0:02:32]}  f6 {[%clk 0:01:47]} 16. h3 {[%clk 0:02:26]}  Bd6 {[%clk 0:01:45]} 17. Bd2 {[%clk 0:02:19]}  Ne7 {[%clk 0:01:35]} 18. Re2 {[%clk 0:02:15]}  Bf5 {[%clk 0:01:34]} 19. Rae1 {[%clk 0:02:05]}  Bg6 {[%clk 0:01:21]} 20. Bg4+ {[%clk 0:01:59]}  Nf5 {[%clk 0:01:04]} 21. h4 {[%clk 0:01:50]}  h5 {[%clk 0:00:54]} 22. Bxf5+ {[%clk 0:01:49]}  Bxf5 {[%clk 0:00:55]} 23. hxg5 {[%clk 0:01:50]}  Bg4 {[%clk 0:00:42]} 24. gxf6 {[%clk 0:01:44]}  Bxf3 {[%clk 0:00:42]} 25. gxf3 {[%clk 0:01:45]}  Rhg8+ {[%clk 0:00:39]} 26. Kf1 {[%clk 0:01:44]}  Raf8 {[%clk 0:00:36]} 27. Re6 {[%clk 0:01:11]}  Rg6 {[%clk 0:00:36]} 28. f4 {[%clk 0:00:33]}  Rgxf6 {[%clk 0:00:22]} 29. Rxf6 {[%clk 0:00:32]}  Rxf6 {[%clk 0:00:23]} 30. Kg2 {[%clk 0:00:33]}  c6 {[%clk 0:00:08]} 31. Kf3 {[%clk 0:00:33]}  Rf5 {[%clk 0:00:08]} 32. a4 {[%clk 0:00:30]}  a5 {[%clk 0:00:06]} 33. b3 {[%clk 0:00:30]}  b6 {[%clk 0:00:06]} 34. c4 {[%clk 0:00:29]}  Rf8 {[%clk 0:00:04]} 35. Rh1 {[%clk 0:00:28]}  Rf5 {[%clk 0:00:05]} 36. Rg1 {[%clk 0:00:28]}  Ke7 {[%clk 0:00:04]} 37. Rg6 {[%clk 0:00:25]}  Rf6 {[%clk 0:00:04]} 38. Rg5 {[%clk 0:00:25]}  h4 {[%clk 0:00:03]} 39. Rh5 {[%clk 0:00:24]}  dxc4 {[%clk 0:00:02]} 40. bxc4 {[%clk 0:00:24]}  Bb4 {[%clk 0:00:03]} 41. Be3 {[%clk 0:00:25]}  Rg6 {[%clk 0:00:01]} 42. Rxh4 {[%clk 0:00:24]}  Rg1 {[%clk 0:00:02]} 43. Rh7+ {[%clk 0:00:24]}  Kd6 {[%clk 0:00:02]} 44. Rb7 {[%clk 0:00:24]}  Ra1 {[%clk 0:00:01]} 45. Rxb6 {[%clk 0:00:24]}  Rxa4 {[%clk 0:00:01]} 46. d5 {[%clk 0:00:24]}  Ra1 {[%clk 0:00:01]} 47. Rxc6+ {[%clk 0:00:25]}  Kd7 {[%clk 0:00:01]} 48. Ra6 {[%clk 0:00:24]}  a4 {[%clk 0:00:02]} 49. c5 {[%clk 0:00:24]}  a3 {[%clk 0:00:02]} 50. f5 {[%clk 0:00:23]}  a2 {[%clk 0:00:02]} 51. c6+ {[%clk 0:00:24]}  Kd6 {[%clk 0:00:02]} 52. Bf4+ {[%clk 0:00:24]}  Kxd5 {[%clk 0:00:03]} 53. c7 {[%clk 0:00:25]}  Rf1 {[%clk 0:00:00]} 54. Rxa2 {[%clk 0:00:24]} 1-0


[Site "https://www.chess.com"]

[Event "Titled Tuesday Blitz November 14 Early 2023"]
[White "Oparin, Grigoriy"]
[Black "Maksimovic, Bojan"]
[WhiteFideId "24125890"]
[BlackFideId "14408120"]
[WhiteElo "2995"]
[BlackElo "2813"]
[Result "1-0"]
[Round "6"]
[TimeControl "180+1"]
[Date "2023.11.14"]
[WhiteClock "0:00:06"]
[BlackClock "0:00:00"]
[Board "19"]

1. g3 {[%clk 0:03:00]}  g6 {[%clk 0:02:57]} 2. c4 {[%clk 0:03:00]}  Bg7 {[%clk 0:02:58]} 3. Bg2 {[%clk 0:03:01]}  d6 {[%clk 0:02:58]} 4. Nc3 {[%clk 0:03:01]}  Nf6 {[%clk 0:02:58]} 5. d4 {[%clk 0:03:01]}  O-O {[%clk 0:02:57]} 6. Nf3 {[%clk 0:03:02]}  Nbd7 {[%clk 0:02:57]} 7. O-O {[%clk 0:03:02]}  e5 {[%clk 0:02:58]} 8. e4 {[%clk 0:03:03]}  exd4 {[%clk 0:02:58]} 9. Nxd4 {[%clk 0:03:04]}  Re8 {[%clk 0:02:59]} 10. Qc2 {[%clk 0:03:05]}  Nc5 {[%clk 0:02:55]} 11. Rd1 {[%clk 0:03:04]}  a5 {[%clk 0:02:55]} 12. Bg5 {[%clk 0:03:01]}  h6 {[%clk 0:02:53]} 13. Bf4 {[%clk 0:03:01]}  Nfd7 {[%clk 0:02:44]} 14. Ndb5 {[%clk 0:02:59]}  Ne5 {[%clk 0:02:40]} 15. h3 {[%clk 0:02:49]}  Ne6 {[%clk 0:02:31]} 16. Bc1 {[%clk 0:02:39]}  Nxc4 {[%clk 0:01:33]} 17. Nd5 {[%clk 0:02:39]}  c6 {[%clk 0:01:33]} 18. Qxc4 {[%clk 0:02:38]}  cxb5 {[%clk 0:01:31]} 19. Qxb5 {[%clk 0:02:37]}  Nd4 {[%clk 0:01:26]} 20. Qd3 {[%clk 0:02:25]}  Bd7 {[%clk 0:01:13]} 21. Bxh6 {[%clk 0:02:17]}  Bxh6 {[%clk 0:00:58]} 22. Qxd4 {[%clk 0:02:17]}  Bg7 {[%clk 0:00:58]} 23. Qd2 {[%clk 0:02:17]}  Bc6 {[%clk 0:00:58]} 24. Rac1 {[%clk 0:02:15]}  a4 {[%clk 0:00:58]} 25. Nb4 {[%clk 0:02:13]}  Bxe4 {[%clk 0:00:50]} 26. Nd5 {[%clk 0:02:00]}  Qa5 {[%clk 0:00:32]} 27. Bxe4 {[%clk 0:01:41]}  Rxe4 {[%clk 0:00:25]} 28. Rc8+ {[%clk 0:01:40]}  Kh7 {[%clk 0:00:25]} 29. Qxa5 {[%clk 0:01:31]}  Rxa5 {[%clk 0:00:26]} 30. Rc7 {[%clk 0:01:32]}  Rd4 {[%clk 0:00:19]} 31. Rxd4 {[%clk 0:01:24]}  Bxd4 {[%clk 0:00:20]} 32. Nf4 {[%clk 0:01:20]}  Rb5 {[%clk 0:00:20]} 33. Nd3 {[%clk 0:00:58]}  Kg7 {[%clk 0:00:19]} 34. Rc2 {[%clk 0:00:57]}  f5 {[%clk 0:00:18]} 35. Kf1 {[%clk 0:00:56]}  Kf6 {[%clk 0:00:18]} 36. Ke2 {[%clk 0:00:56]}  g5 {[%clk 0:00:19]} 37. Kd1 {[%clk 0:00:54]}  Rd5 {[%clk 0:00:17]} 38. Rd2 {[%clk 0:00:55]}  Rb5 {[%clk 0:00:16]} 39. Kc2 {[%clk 0:00:55]}  Be5 {[%clk 0:00:15]} 40. Kb1 {[%clk 0:00:47]}  f4 {[%clk 0:00:14]} 41. g4 {[%clk 0:00:42]}  Rd5 {[%clk 0:00:11]} 42. Kc1 {[%clk 0:00:40]}  Rb5 {[%clk 0:00:11]} 43. Ne1 {[%clk 0:00:38]}  Rc5+ {[%clk 0:00:10]} 44. Kb1 {[%clk 0:00:38]}  Rc8 {[%clk 0:00:10]} 45. Rd3 {[%clk 0:00:34]}  Rh8 {[%clk 0:00:09]} 46. Kc2 {[%clk 0:00:27]}  b5 {[%clk 0:00:10]} 47. Nf3 {[%clk 0:00:25]}  Rc8+ {[%clk 0:00:10]} 48. Kb1 {[%clk 0:00:25]}  b4 {[%clk 0:00:07]} 49. Nd2 {[%clk 0:00:25]}  Rh8 {[%clk 0:00:06]} 50. b3 {[%clk 0:00:23]}  axb3 {[%clk 0:00:05]} 51. Rxb3 {[%clk 0:00:22]}  Ke6 {[%clk 0:00:03]} 52. Ne4 {[%clk 0:00:22]}  Rg8 {[%clk 0:00:03]} 53. Rxb4 {[%clk 0:00:22]}  Kd5 {[%clk 0:00:04]} 54. Kc2 {[%clk 0:00:19]}  Bd4 {[%clk 0:00:03]} 55. Kd3 {[%clk 0:00:18]}  Be5 {[%clk 0:00:04]} 56. Rb5+ {[%clk 0:00:18]}  Ke6 {[%clk 0:00:04]} 57. a4 {[%clk 0:00:17]}  d5 {[%clk 0:00:03]} 58. Rb6+ {[%clk 0:00:17]}  Ke7 {[%clk 0:00:02]} 59. Nc5 {[%clk 0:00:16]}  Rc8 {[%clk 0:00:03]} 60. Rb5 {[%clk 0:00:10]}  Kd6 {[%clk 0:00:03]} 61. Nb7+ {[%clk 0:00:11]}  Ke6 {[%clk 0:00:03]} 62. Rc5 {[%clk 0:00:10]}  Rb8 {[%clk 0:00:04]} 63. Rb5 {[%clk 0:00:08]}  Rc8 {[%clk 0:00:04]} 64. a5 {[%clk 0:00:07]}  Rc3+ {[%clk 0:00:04]} 65. Kd2 {[%clk 0:00:08]}  Rxh3 {[%clk 0:00:04]} 66. a6 {[%clk 0:00:09]}  Ra3 {[%clk 0:00:05]} 67. Kc2 {[%clk 0:00:07]}  Bd4 {[%clk 0:00:04]} 68. Ra5 {[%clk 0:00:04]}  Rxa5 {[%clk 0:00:03]} 69. Nxa5 {[%clk 0:00:05]}  Bxf2 {[%clk 0:00:03]} 70. Nc6 {[%clk 0:00:04]}  Kd6 {[%clk 0:00:03]} 71. a7 {[%clk 0:00:05]}  Bxa7 {[%clk 0:00:03]} 72. Nxa7 {[%clk 0:00:06]}  Ke5 {[%clk 0:00:02]} 73. Kd3 {[%clk 0:00:06]}  d4 {[%clk 0:00:00]} 74. Nc6+ {[%clk 0:00:06]} 1-0


[Site "https://www.chess.com"]

[Event "Titled Tuesday Blitz November 14 Early 2023"]
[White "Fier, Alexandr"]
[Black "Muradli, Mahammad"]
[WhiteFideId "2107139"]
[BlackFideId "13409301"]
[WhiteElo "2809"]
[BlackElo "2993"]
[Result "0-1"]
[Round "6"]
[TimeControl "180+1"]
[Date "2023.11.14"]
[WhiteClock "0:00:18"]
[BlackClock "0:00:06"]
[Board "20"]

1. Nf3 {[%clk 0:03:00]}  c5 {[%clk 0:02:59]} 2. g3 {[%clk 0:03:01]}  b6 {[%clk 0:02:58]} 3. Bg2 {[%clk 0:03:02]}  Bb7 {[%clk 0:02:59]} 4. O-O {[%clk 0:03:03]}  g6 {[%clk 0:03:00]} 5. c4 {[%clk 0:03:02]}  Bg7 {[%clk 0:03:00]} 6. Nc3 {[%clk 0:03:02]}  Nf6 {[%clk 0:02:59]} 7. d4 {[%clk 0:03:03]}  cxd4 {[%clk 0:03:00]} 8. Qxd4 {[%clk 0:03:03]}  O-O {[%clk 0:03:00]} 9. Qh4 {[%clk 0:03:02]}  d6 {[%clk 0:02:57]} 10. Bh6 {[%clk 0:03:02]}  Nbd7 {[%clk 0:02:58]} 11. Rfd1 {[%clk 0:03:02]}  Rc8 {[%clk 0:02:56]} 12. Bh3 {[%clk 0:02:59]}  Bxh6 {[%clk 0:02:40]} 13. Qxh6 {[%clk 0:02:58]}  Bxf3 {[%clk 0:02:40]} 14. exf3 {[%clk 0:02:57]}  Rxc4 {[%clk 0:02:41]} 15. f4 {[%clk 0:02:56]}  Qc7 {[%clk 0:02:34]} 16. Re1 {[%clk 0:02:53]}  e6 {[%clk 0:02:29]} 17. Rad1 {[%clk 0:02:49]}  d5 {[%clk 0:02:13]} 18. Ne2 {[%clk 0:02:26]}  Ne4 {[%clk 0:02:04]} 19. Nd4 {[%clk 0:02:20]}  Ndf6 {[%clk 0:01:35]} 20. Nxe6 {[%clk 0:02:05]}  fxe6 {[%clk 0:01:34]} 21. Bxe6+ {[%clk 0:02:06]}  Rf7 {[%clk 0:01:35]} 22. Qh3 {[%clk 0:01:18]}  Qc5 {[%clk 0:01:22]} 23. Bxf7+ {[%clk 0:01:17]}  Kxf7 {[%clk 0:01:22]} 24. Re2 {[%clk 0:01:17]}  Rc2 {[%clk 0:01:13]} 25. Qf1 {[%clk 0:01:17]}  Ng4 {[%clk 0:00:59]} 26. Rxc2 {[%clk 0:01:16]}  Qxc2 {[%clk 0:01:00]} 27. Rxd5 {[%clk 0:01:15]}  Ngxf2 {[%clk 0:00:54]} 28. f5 {[%clk 0:00:54]}  g5 {[%clk 0:00:37]} 29. Rd4 {[%clk 0:00:53]}  Kf6 {[%clk 0:00:24]} 30. Rc4 {[%clk 0:00:45]}  Qxb2 {[%clk 0:00:13]} 31. Rc6+ {[%clk 0:00:44]}  Kxf5 {[%clk 0:00:08]} 32. Qc1 {[%clk 0:00:31]}  Qxc1+ {[%clk 0:00:06]} 33. Rxc1 {[%clk 0:00:31]}  Nc5 {[%clk 0:00:07]} 34. Rf1 {[%clk 0:00:29]}  Nd3 {[%clk 0:00:06]} 35. Rb1 {[%clk 0:00:26]}  Ke5 {[%clk 0:00:05]} 36. Kf1 {[%clk 0:00:26]}  Ne4 {[%clk 0:00:05]} 37. Rb5+ {[%clk 0:00:26]}  Ndc5 {[%clk 0:00:05]} 38. Kg2 {[%clk 0:00:26]}  Kd5 {[%clk 0:00:04]} 39. Rb2 {[%clk 0:00:24]}  h6 {[%clk 0:00:03]} 40. Kf3 {[%clk 0:00:24]}  h5 {[%clk 0:00:03]} 41. h4 {[%clk 0:00:23]}  g4+ {[%clk 0:00:02]} 42. Kg2 {[%clk 0:00:23]}  Nd3 {[%clk 0:00:02]} 43. Rb3 {[%clk 0:00:22]}  Ne1+ {[%clk 0:00:02]} 44. Kf1 {[%clk 0:00:22]}  Nf3 {[%clk 0:00:03]} 45. Kg2 {[%clk 0:00:22]}  Ne1+ {[%clk 0:00:03]} 46. Kf1 {[%clk 0:00:22]}  Nd2+ {[%clk 0:00:04]} 47. Kxe1 {[%clk 0:00:20]}  Nxb3 {[%clk 0:00:05]} 48. axb3 {[%clk 0:00:21]}  Kd4 {[%clk 0:00:05]} 49. Kd2 {[%clk 0:00:21]}  a5 {[%clk 0:00:06]} 50. Kc2 {[%clk 0:00:21]}  b5 {[%clk 0:00:06]} 51. Kd2 {[%clk 0:00:18]}  a4 {[%clk 0:00:06]} 0-1


[Site "https://www.chess.com"]

[Event "Titled Tuesday Blitz November 14 Early 2023"]
[White "Ashraf, Artin"]
[Black "Nigmatov, Ortik"]
[WhiteFideId "22514805"]
[BlackFideId "14202131"]
[WhiteElo "2929"]
[BlackElo "2770"]
[Result "1-0"]
[Round "6"]
[TimeControl "180+1"]
[Date "2023.11.14"]
[WhiteClock "0:00:26"]
[BlackClock "0:00:09"]
[Board "24"]

1. c4 {[%clk 0:02:58]}  e5 {[%clk 0:02:59]} 2. g3 {[%clk 0:02:57]}  Nc6 {[%clk 0:03:00]} 3. Bg2 {[%clk 0:02:58]}  g6 {[%clk 0:03:00]} 4. Nc3 {[%clk 0:02:44]}  Bg7 {[%clk 0:03:00]} 5. d3 {[%clk 0:02:44]}  d6 {[%clk 0:02:59]} 6. Rb1 {[%clk 0:02:44]}  a5 {[%clk 0:02:59]} 7. a3 {[%clk 0:02:41]}  f5 {[%clk 0:02:57]} 8. b4 {[%clk 0:02:36]}  axb4 {[%clk 0:02:55]} 9. axb4 {[%clk 0:02:37]}  Nf6 {[%clk 0:02:54]} 10. b5 {[%clk 0:02:37]}  Ne7 {[%clk 0:02:54]} 11. Bb2 {[%clk 0:02:30]}  O-O {[%clk 0:02:52]} 12. Nf3 {[%clk 0:02:29]}  h6 {[%clk 0:02:50]} 13. O-O {[%clk 0:02:29]}  g5 {[%clk 0:02:50]} 14. Ne1 {[%clk 0:02:27]}  Ng6 {[%clk 0:02:46]} 15. Ra1 {[%clk 0:02:27]}  Rb8 {[%clk 0:02:45]} 16. Ra7 {[%clk 0:02:24]}  h5 {[%clk 0:02:31]} 17. Nc2 {[%clk 0:02:21]}  h4 {[%clk 0:02:30]} 18. Ne3 {[%clk 0:02:20]}  hxg3 {[%clk 0:02:18]} 19. hxg3 {[%clk 0:02:18]}  b6 {[%clk 0:01:51]} 20. Ned5 {[%clk 0:02:13]}  Nxd5 {[%clk 0:01:47]} 21. Nxd5 {[%clk 0:02:07]}  Rf7 {[%clk 0:01:45]} 22. Nb4 {[%clk 0:02:07]}  Qe8 {[%clk 0:01:29]} 23. Na6 {[%clk 0:01:51]}  Be6 {[%clk 0:01:02]} 24. Nxb8 {[%clk 0:01:40]}  e4 {[%clk 0:01:02]} 25. Bxg7 {[%clk 0:01:35]}  Rxg7 {[%clk 0:01:03]} 26. dxe4 {[%clk 0:01:36]}  f4 {[%clk 0:00:58]} 27. e5 {[%clk 0:01:36]}  Nh4 {[%clk 0:00:56]} 28. Bd5 {[%clk 0:01:32]}  Kh8 {[%clk 0:00:53]} 29. exd6 {[%clk 0:01:23]}  fxg3 {[%clk 0:00:37]} 30. fxg3 {[%clk 0:00:36]}  Bxd5 {[%clk 0:00:36]} 31. Qxd5 {[%clk 0:00:37]}  Qe3+ {[%clk 0:00:36]} 32. Rf2 {[%clk 0:00:38]}  Qc1+ {[%clk 0:00:25]} 33. Kh2 {[%clk 0:00:34]}  Nf3+ {[%clk 0:00:21]} 34. Rxf3 {[%clk 0:00:28]}  Rh7+ {[%clk 0:00:21]} 35. Kg2 {[%clk 0:00:28]}  Qh1+ {[%clk 0:00:18]} 36. Kf2 {[%clk 0:00:29]}  Rh2+ {[%clk 0:00:16]} 37. Ke3 {[%clk 0:00:29]}  Qg1+ {[%clk 0:00:09]} 38. Kd2 {[%clk 0:00:26]} 1-0


[Site "https://www.chess.com"]